lending/lending_fUSD_20240731
["ID","MTS","AMOUNT","RATE_DAILY","PERIOD"]
[333720458,1722408236959,-500.0,0.00043835,120]
[333720459,1722408236988,-503.40766774,0.00043835,120]
[333720460,1722408237019,-1830.55,0.00043835,120]
[333720461,1722408237048,-500.0,0.00043835,120]
[333720462,1722408237079,-572.98,0.00043835,120]
[333720463,1722408237112,-1725.18,0.00043835,120]
[333720464,1722408237142,-500.0,0.00043835,120]
[333720465,1722408237172,-780.28,0.00043835,120]
[333720466,1722408237204,-1023.79,0.00043835,120]
[333720467,1722408237234,-500.0,0.00043835,120]
[333720468,1722408237264,-500.0,0.00043835,120]
[333720469,1722408237294,-500.0,0.00043835,120]
[333720470,1722408237324,-716.91,0.00043835,120]
[333720471,1722408237353,-500.0,0.00043835,120]
[333720472,1722408237382,-507.07,0.00043835,120]
[333720473,1722408237410,-500.0,0.00043835,120]
[333720474,1722408237440,-500.0,0.00043835,120]
[333720475,1722408237470,-500.0,0.00043835,120]
[333720476,1722408237499,-500.0,0.00043835,120]
[333720477,1722408237529,-751.99,0.00043835,120]
[333720478,1722408237557,-439.00790181,0.00043835,120]
[333720479,1722408237587,-500.0,0.00043835,120]
[333720480,1722408237619,-500.0,0.00043835,120]
[333720481,1722408237650,-507.9426394,0.00043835,120]
[333720482,1722408237680,-500.0,0.00043835,120]
[333720483,1722408237710,-500.0,0.00043835,120]
[333720484,1722408237740,-500.0,0.00043835,120]
[333720485,1722408237770,-500.0,0.00043835,120]
[333720486,1722408237803,-500.0,0.00043835,120]
[333720487,1722408237834,-957.83,0.00043835,120]
[333720488,1722408237867,-500.0,0.00043835,120]
[333720489,1722408237899,-501.63973344,0.00043835,120]
[333720490,1722408237929,-500.0,0.00043835,120]
[333720491,1722408237960,-500.0,0.00043835,120]
[333720492,1722408237990,-500.0,0.00043835,120]
[333720493,1722408238022,-2783.89,0.00043835,120]
[333720494,1722408238054,-500.0,0.00043835,120]
[333720495,1722408238084,-500.0,0.00043835,120]
[333720496,1722408238121,-500.0,0.00043835,120]
[333720497,1722408238155,-500.0,0.00043835,120]
[333720498,1722408238187,-517.61,0.00043835,120]
[333720499,1722408238218,-514.1724531,0.00043835,120]
[333720500,1722408238250,-500.0,0.00043835,120]
[333720501,1722408238283,-1429.89,0.00043835,120]
[333720502,1722408238315,-2890.73,0.00043835,120]
[333720503,1722408238349,-500.0,0.00043835,120]
[333720504,1722408238381,-1302.02,0.00043835,120]
[333720505,1722408238413,-500.0,0.00043835,120]
[333720506,1722408238445,-500.0,0.00043835,120]
[333720507,1722408238477,-500.0,0.00043835,120]
[333720508,1722408238510,-500.0,0.00043835,120]
[333720509,1722408238542,-500.0,0.00043835,120]
[333720510,1722408238575,-745.96,0.00043835,120]
[333720511,1722408238815,-500.0,0.00043835,120]
[333720512,1722408238850,-500.0,0.00043835,120]
[333720513,1722408238883,-1812.2,0.00043835,120]
[333720514,1722408238915,-6835.07,0.00043835,120]
[333720515,1722408238946,-500.0,0.00043835,120]
[333720516,1722408238979,-3008.35,0.00043835,120]
[333720517,1722408239009,-528.41,0.00043835,120]
[333720518,1722408239042,-500.0,0.00043835,120]
[333720519,1722408239075,-561.58,0.00043835,120]
[333720520,1722408239108,-500.0,0.00043835,120]
[333720521,1722408239140,-605.31,0.00043835,120]
[333720522,1722408239172,-735.42,0.00043835,120]
[333720523,1722408239203,-755.15,0.00043835,120]
[333720524,1722408239235,-2210.28,0.00043835,120]
[333720525,1722408239267,-1758.5,0.00043835,120]
[333720526,1722408239299,-811.29,0.00043835,120]
[333720527,1722408239331,-500.0,0.00043835,120]
[333720528,1722408239365,-500.0,0.00043835,120]
[333720529,1722408239399,-500.0,0.00043835,120]
[333720530,1722408239430,-500.0,0.00043835,120]
[333720531,1722408239463,-766.29,0.00043835,120]
[333720532,1722408239493,-500.0,0.00043835,120]
[333720533,1722408239524,-500.0,0.00043835,120]
[333720534,1722408239555,-2182.13,0.00043835,120]
[333720535,1722408239585,-500.0,0.00043835,120]
[333720536,1722408239615,-662.67,0.00043835,120]
[333720537,1722408239645,-500.0,0.00043835,120]
[333720538,1722408239677,-500.0,0.00043835,120]
[333720539,1722408239707,-500.0,0.00043835,120]
[333720540,1722408239737,-500.0,0.00043835,120]
[333720541,1722408239766,-506.99156885,0.00043835,120]
[333720542,1722408239796,-581.13,0.00043835,120]
[333720543,1722408239826,-500.0,0.00043835,120]
[333720544,1722408239856,-500.0,0.00043835,120]
[333720545,1722408239887,-500.0,0.00043835,120]
[333720546,1722408239920,-500.0,0.00043835,120]
[333720547,1722408239955,-500.0,0.00043835,120]
[333720548,1722408239987,-4721.93,0.00043835,120]
[333720549,1722408240018,-500.0,0.00043835,120]
[333720550,1722408240051,-500.0,0.00043835,120]
[333720551,1722408240082,-500.0,0.00043835,120]
[333720552,1722408240117,-500.0,0.00043835,120]
[333720553,1722408240151,-628.83,0.00043835,120]
[333720554,1722408240184,-500.0,0.00043835,120]
[333720555,1722408240216,-572.92,0.00043835,120]
[333720556,1722408240247,-507.23785536,0.00043835,120]
[333720557,1722408240281,-3052.94,0.00043835,120]
[333720558,1722408240313,-1029.4,0.00043835,120]
[333720559,1722408240348,-2476.98,0.00043835,120]
[333720560,1722408240380,-1397.97,0.00043835,120]
[333720561,1722408240412,-500.0,0.00043835,120]
[333720562,1722408240445,-3062.94,0.00043835,120]
[333720563,1722408240477,-503.43820633,0.00043835,120]
[333720564,1722408240509,-500.0,0.00043835,120]
[333720565,1722408240542,-500.0,0.00043835,120]
[333720566,1722408240573,-1434.58,0.00043835,120]
[333720567,1722408240603,-500.0,0.00043835,120]
[333720568,1722408240633,-507.05,0.00043835,120]
[333720569,1722408240663,-500.0,0.00043835,120]
[333720570,1722408240693,-500.0,0.00043835,120]
[333720571,1722408240727,-500.0,0.00043835,120]
[333720572,1722408240760,-635.40265432,0.00043835,120]
[333720573,1722408240791,-1245.56,0.00043835,120]
[333720574,1722408240824,-3671.23,0.00043835,120]
[333720575,1722408240856,-500.0,0.00043835,120]
[333720576,1722408240888,-908.54,0.00043835,120]
[333720577,1722408240918,-500.0,0.00043835,120]
[333720578,1722408240948,-500.0,0.00043835,120]
[333720579,1722408240979,-522.1,0.00043835,120]
[333720580,1722408241010,-1689.03,0.00043835,120]
[333720581,1722408241042,-500.0,0.00043835,120]
[333720582,1722408241073,-500.0,0.00043835,120]
[333720583,1722408241108,-553.23,0.00043835,120]
[333720584,1722408241140,-500.0,0.00043835,120]
[333720585,1722408241172,-500.0,0.00043835,120]
[333720586,1722408241204,-503.9243883,0.00043835,120]
[333720587,1722408241235,-500.0,0.00043835,120]
[333720588,1722408241265,-500.0,0.00043835,120]
[333720589,1722408241297,-505.64,0.00043835,120]
[333720590,1722408241330,-1090.76,0.00043835,120]
[333720591,1722408241362,-500.0,0.00043835,120]
[333720592,1722408241393,-1595.68,0.00043835,120]
[333720593,1722408241424,-500.0,0.00043835,120]
[333720594,1722408241455,-508.19422716,0.00043835,120]
[333720595,1722408241486,-500.0,0.00043835,120]
[333720596,1722408241515,-500.0,0.00043835,120]
[333720597,1722408241545,-886.85,0.00043835,120]
[333720598,1722408241576,-500.0,0.00043835,120]
[333720599,1722408241608,-1436.92,0.00043835,120]
[333720600,1722408241638,-500.0,0.00043835,120]
[333720601,1722408241668,-500.0,0.00043835,120]
[333720602,1722408241698,-500.0,0.00043835,120]
[333720603,1722408241728,-980.83,0.00043835,120]
[333720604,1722408241759,-500.0,0.00043835,120]
[333720605,1722408241788,-502.69499524,0.00043835,120]
[333720606,1722408241819,-961.32,0.00043835,120]
[333720607,1722408241850,-500.0,0.00043835,120]
[333720608,1722408241881,-500.0,0.00043835,120]
[333720609,1722408241911,-500.0,0.00043835,120]
[333720610,1722408241941,-500.0,0.00043835,120]
[333720611,1722408241971,-502.4428713,0.00043835,120]
[333720612,1722408242001,-500.0,0.00043835,120]
[333720613,1722408242031,-507.48171805,0.00043835,120]
[333720614,1722408242063,-619.58,0.00043835,120]
[333720615,1722408242100,-500.0,0.00043835,120]
[333720616,1722408242339,-500.0,0.00043835,120]
[333720617,1722408242371,-1324.4,0.00043835,120]
[333720618,1722408242403,-1734.37,0.00043835,120]
[333720619,1722408242438,-916.88,0.00043835,120]
[333720620,1722408242471,-500.0,0.00043835,120]
[333720621,1722408242504,-1450.39,0.00043835,120]
[333720622,1722408242534,-500.0,0.00043835,120]
[333720623,1722408242563,-500.0,0.00043835,120]
[333720624,1722408242593,-239.05370112,0.00043835,120]
[333720625,1722408242622,-978.51,0.00043835,120]
[333720626,1722408242651,-500.0,0.00043835,120]
[333720627,1722408242681,-500.0,0.00043835,120]
[333720628,1722408242711,-500.0,0.00043835,120]
[333720629,1722408242742,-500.0,0.00043835,120]
[333720630,1722408242774,-637.16,0.00043835,120]
[333720631,1722408242806,-500.0,0.00043835,120]
[333720632,1722408242836,-500.0,0.00043835,120]
[333720633,1722408242868,-500.0,0.00043835,120]
[333720634,1722408242901,-3055.94,0.00043835,120]
[333720635,1722408242938,-375.44517358,0.00043835,120]
[333720636,1722408242975,-500.0,0.00043835,120]
[333720637,1722408243011,-500.0,0.00043835,120]
[333720638,1722408243044,-3428.21,0.00043835,120]
[333720639,1722408243077,-500.0,0.00043835,120]
[333720640,1722408243112,-1042.76,0.00043835,120]
[333720641,1722408243144,-500.0,0.00043835,120]
[333720642,1722408243177,-1046.47,0.00043835,120]
[333720643,1722408243209,-1739.19,0.00043835,120]
[333720644,1722408243243,-500.0,0.00043835,120]
[333720645,1722408243277,-500.0,0.00043835,120]
[333720646,1722408243311,-500.0,0.00043835,120]
[333720647,1722408243346,-500.0,0.00043835,120]
[333720648,1722408243380,-3676.51,0.00043835,120]
[333720649,1722408243414,-500.0,0.00043835,120]
[333720650,1722408243449,-641.96,0.00043835,120]
[333720651,1722408243484,-500.0,0.00043835,120]
[333720652,1722408243516,-500.0,0.00043835,120]
[333720653,1722408243548,-708.85,0.00043835,120]
[333720654,1722408243584,-4147.58,0.00043835,120]
[333720655,1722408243617,-500.0,0.00043835,120]
[333720656,1722408243650,-500.0,0.00043835,120]
[333720657,1722408243684,-500.0,0.00043835,120]
[333720658,1722408243719,-1237.2,0.00043835,120]
[333720659,1722408243753,-500.0,0.00043835,120]
[333720660,1722408243788,-500.0,0.00043835,120]
[333720661,1722408243823,-500.0,0.00043835,120]
[333720662,1722408243860,-500.0,0.00043835,120]
[333720663,1722408243895,-500.0,0.00043835,120]
[333720664,1722408243928,-500.0,0.00043835,120]
[333720665,1722408243963,-1091.36,0.00043835,120]
[333720666,1722408243996,-351.20047377,0.00043835,120]
[333720667,1722408244033,-500.0,0.00043835,120]
[333720668,1722408244068,-2718.2,0.00043835,120]
[333720669,1722408244105,-10565.72,0.00043835,120]
[333720670,1722408244140,-1716.34,0.00043835,120]
[333720671,1722408244175,-500.0,0.00043835,120]
[333720672,1722408244209,-500.0,0.00043835,120]
[333720673,1722408244243,-500.0,0.00043835,120]
[333720674,1722408244276,-500.0,0.00043835,120]
[333720675,1722408244310,-500.0,0.00043835,120]
[333720676,1722408244343,-628.08,0.00043835,120]
[333720677,1722408244376,-500.0,0.00043835,120]
[333720678,1722408244410,-636.34,0.00043835,120]
[333720679,1722408244443,-500.0,0.00043835,120]
[333720680,1722408244477,-500.0,0.00043835,120]
[333720681,1722408244511,-500.0,0.00043835,120]
[333720682,1722408244544,-1000.0,0.00043835,120]
[333720683,1722408244579,-916.06,0.00043835,120]
[333720684,1722408244612,-500.0,0.00043835,120]
[333720685,1722408244645,-500.68,0.00043835,120]
[333720686,1722408244680,-4839.01,0.00043835,120]
[333720687,1722408244711,-203.79833895,0.00043835,120]
[333720688,1722408244742,-814.5,0.00043835,120]
[333720689,1722408244775,-1127.97,0.00043835,120]
[333720690,1722408244806,-500.0,0.00043835,120]
[333720691,1722408244838,-1101.7,0.00043835,120]
[333720692,1722408244870,-500.0,0.00043835,120]
[333720693,1722408244902,-3171.27,0.00043835,120]
[333720694,1722408244935,-500.0,0.00043835,120]
[333720695,1722408244968,-1085.77,0.00043835,120]
[333720696,1722408245001,-500.0,0.00043835,120]
[333720697,1722408245035,-500.0,0.00043835,120]
[333720698,1722408245068,-1269.58,0.00043835,120]
[333720699,1722408245103,-527.72,0.00043835,120]
[333720700,1722408245137,-735.12,0.00043835,120]
[333720701,1722408245171,-830.45,0.00043835,120]
[333720702,1722408245205,-1213.79,0.00043835,120]
[333720703,1722408245238,-2199.24,0.00043835,120]
[333720704,1722408245270,-352.6988227,0.00043835,120]
[333720705,1722408245304,-500.0,0.00043835,120]
[333720706,1722408245337,-742.16,0.00043835,120]
[333720707,1722408245370,-500.0,0.00043835,120]
[333720708,1722408245403,-558.71,0.00043835,120]
[333720709,1722408245435,-1171.99,0.00043835,120]
[333720710,1722408245467,-500.0,0.00043835,120]
[333720711,1722408245500,-500.0,0.00043835,120]
[333720712,1722408245530,-652.55,0.00043835,120]
[333720713,1722408245562,-1614.98,0.00043835,120]
[333720714,1722408245594,-922.39,0.00043835,120]
[333720715,1722408245624,-775.47,0.00043835,120]
[333720716,1722408245656,-1727.29,0.00043835,120]
[333720717,1722408245685,-500.0,0.00043835,120]
[333720718,1722408245716,-500.0,0.00043835,120]
[333720719,1722408245747,-500.0,0.00043835,120]
[333720720,1722408245780,-766.34,0.00043835,120]
[333720721,1722408246022,-500.0,0.00043835,120]
[333720722,1722408246054,-452.39030866,0.00043835,120]
[333720723,1722408246085,-667.38,0.00043835,120]
[333720724,1722408246123,-500.0,0.00043835,120]
[333720725,1722408246158,-1600.07,0.00043835,120]
[333720726,1722408246194,-500.0,0.00043835,120]
[333720727,1722408246226,-3645.86,0.00043835,120]
[333720728,1722408246258,-1706.51,0.00043835,120]
[333720729,1722408246288,-500.0,0.00043835,120]
[333720730,1722408246320,-500.0,0.00043835,120]
[333720731,1722408246353,-1436.67,0.00043835,120]
[333720732,1722408246386,-1436.67,0.00043835,120]
[333720733,1722408246419,-3634.42,0.00043835,120]
[333720734,1722408246452,-1436.67,0.00043835,120]
[333720735,1722408246484,-1436.67,0.00043835,120]
[333720736,1722408246515,-500.0,0.00043835,120]
[333720737,1722408246547,-1436.67,0.00043835,120]
[333720738,1722408246581,-1436.67,0.00043835,120]
[333720739,1722408246613,-1436.67,0.00043835,120]
[333720740,1722408246644,-650.03,0.00043835,120]
[333720741,1722408246676,-1436.67,0.00043835,120]
[333720742,1722408246708,-1436.67,0.00043835,120]
[333720743,1722408246741,-500.0,0.00043835,120]
[333720744,1722408246773,-891.71,0.00043835,120]
[333720745,1722408246805,-500.0,0.00043835,120]
[333720746,1722408246839,-500.0,0.00043835,120]
[333720747,1722408246873,-1436.67,0.00043835,120]
[333720748,1722408246907,-731.06,0.00043835,120]
[333720749,1722408246941,-1436.67,0.00043835,120]
[333720750,1722408246975,-1436.67,0.00043835,120]
[333720751,1722408247010,-1436.67,0.00043835,120]
[333720752,1722408247043,-500.0,0.00043835,120]
[333720753,1722408247077,-1436.67,0.00043835,120]
[333720754,1722408247116,-500.0,0.00043835,120]
[333720755,1722408247153,-1436.67,0.00043835,120]
[333720756,1722408247193,-1436.67,0.00043835,120]
[333720757,1722408247227,-1436.67,0.00043835,120]
[333720758,1722408247260,-1010.16,0.00043835,120]
[333720759,1722408247293,-1436.67,0.00043835,120]
[333720760,1722408247326,-1436.67,0.00043835,120]
[333720761,1722408247362,-1436.67,0.00043835,120]
[333720762,1722408247393,-194.82725768,0.00043835,120]
[333720763,1722408247427,-1436.67,0.00043835,120]
[333720764,1722408247459,-1436.67,0.00043835,120]
[333720765,1722408247491,-548.12,0.00043835,120]
[333720766,1722408247523,-1120.16,0.00043835,120]
[333720767,1722408247556,-1436.67,0.00043835,120]
[333720768,1722408247590,-966.04,0.00043835,120]
[333720769,1722408247621,-500.0,0.00043835,120]
[333720770,1722408247653,-1436.70811817,0.00043835,120]
[333720771,1722408247684,-500.0,0.00043835,120]
[333720772,1722408247716,-500.0,0.00043835,120]
[333720773,1722408247748,-500.0,0.00043835,120]
[333720774,1722408247780,-500.0,0.00043835,120]
[333720775,1722408247814,-552.83,0.00043835,120]
[333720776,1722408247847,-500.0,0.00043835,120]
[333720777,1722408247879,-504.73,0.00043835,120]
[333720778,1722408247909,-500.0,0.00043835,120]
[333720779,1722408247940,-961.72,0.00043835,120]
[333720780,1722408247969,-500.0,0.00043835,120]
[333720781,1722408247999,-500.0,0.00043835,120]
[333720782,1722408248029,-3018.05,0.00043835,120]
[333720783,1722408248060,-500.0,0.00043835,120]
[333720784,1722408248092,-562.83,0.00043835,120]
[333720785,1722408248123,-500.0,0.00043835,120]
[333720786,1722408248154,-500.0,0.00043835,120]
[333720787,1722408248187,-514.17,0.00043835,120]
[333720788,1722408248216,-2095.91,0.00043835,120]
[333720789,1722408248247,-500.0,0.00043835,120]
[333720790,1722408248281,-1504.39,0.00043835,120]
[333720791,1722408248313,-1559.63,0.00043835,120]
[333720792,1722408248344,-2645.88,0.00043835,120]
[333720793,1722408248375,-656.68,0.00043835,120]
[333720794,1722408248405,-500.0,0.00043835,120]
[333720795,1722408248437,-500.0,0.00043835,120]
[333720796,1722408248469,-503.39177372,0.00043835,120]
[333720797,1722408248500,-500.0,0.00043835,120]
[333720798,1722408248531,-837.38,0.00043835,120]
[333720799,1722408248562,-500.0,0.00043835,120]
[333720800,1722408248593,-500.0,0.00043835,120]
[333720801,1722408248623,-1378.48,0.00043835,120]
[333720802,1722408248654,-534.97,0.00043835,120]
[333720803,1722408248685,-2724.22,0.00043835,120]
[333720804,1722408248716,-500.0,0.00043835,120]
[333720805,1722408248747,-500.0,0.00043835,120]
[333720806,1722408248777,-500.0,0.00043835,120]
[333720807,1722408248809,-286.16423044,0.00043835,120]
[333720808,1722408248840,-2592.84,0.00043835,120]
[333720809,1722408248871,-3772.53,0.00043835,120]
[333720810,1722408248901,-1325.58,0.00043835,120]
[333720811,1722408248932,-500.0,0.00043835,120]
[333720812,1722408248965,-2771.65,0.00043835,120]
[333720813,1722408248997,-643.86,0.00043835,120]
[333720814,1722408249030,-500.0,0.00043835,120]
[333720815,1722408249062,-500.0,0.00043835,120]
[333720816,1722408249099,-1216.71,0.00043835,120]
[333720817,1722408249136,-1917.75,0.00043835,120]
[333720818,1722408249169,-1849.58,0.00043835,120]
[333720819,1722408249202,-500.0,0.00043835,120]
[333720820,1722408249233,-662.07,0.00043835,120]
[333720821,1722408249265,-500.0,0.00043835,30]
[333720822,1722408249296,-1824.68,0.00043835,120]
[333720823,1722408249328,-500.0,0.00043835,120]
[333720824,1722408249566,-1916.29,0.00043835,120]
[333720825,1722408249599,-1180.34,0.00043835,120]
[333720826,1722408249630,-500.0,0.00043835,120]
[333720827,1722408249661,-500.0,0.00043835,120]
[333720828,1722408249692,-500.0,0.00043835,120]
[333720829,1722408249723,-500.0,0.00043835,120]
[333720830,1722408249754,-2919.98,0.00043835,120]
[333720831,1722408249785,-500.0,0.00043835,120]
[333720832,1722408249816,-500.0,0.00043835,120]
[333720833,1722408249848,-574.04921197,0.00043835,120]
[333720834,1722408249878,-500.0,0.00043835,120]
[333720835,1722408249909,-500.0,0.00043835,120]
[333720836,1722408249941,-1585.71,0.00043835,120]
[333720837,1722408249971,-500.0,0.00043835,120]
[333720838,1722408250001,-500.0,0.00043835,120]
[333720839,1722408250033,-500.0,0.00043835,120]
[333720840,1722408250065,-1083.89,0.00043835,120]
[333720841,1722408250104,-500.0,0.00043835,120]
[333720842,1722408250137,-1134.13,0.00043835,120]
[333720843,1722408250169,-590.87268938,0.00043835,120]
[333720844,1722408250201,-500.0,0.00043835,120]
[333720845,1722408250232,-811.79,0.00043835,120]
[333720846,1722408250262,-505.83784688,0.00043835,120]
[333720847,1722408250294,-1395.16,0.00043835,120]
[333720848,1722408250325,-500.0,0.00043835,120]
[333720849,1722408250357,-503.83582297,0.00043835,120]
[333720850,1722408250388,-500.0,0.00043835,120]
[333720851,1722408250419,-500.0,0.00043835,120]
[333720852,1722408250453,-561.99,0.00043835,120]
[333720853,1722408250484,-500.0,0.00043835,120]
[333720854,1722408250515,-4315.29,0.00043835,120]
[333720855,1722408250546,-640.96,0.00043835,120]
[333720856,1722408250576,-510.09945424,0.00043835,120]
[333720857,1722408250608,-1109.51,0.00043835,120]
[333720858,1722408250638,-500.0,0.00043835,120]
[333720859,1722408250667,-280.3066154,0.00043835,120]
[333720860,1722408250697,-556.47,0.00043835,120]
[333720861,1722408250726,-427.09303827,0.00043835,120]
[333720862,1722408250756,-500.0,0.00043835,120]
[333720863,1722408250787,-556.0,0.00043835,120]
[333720864,1722408250816,-982.35,0.00043835,120]
[333720865,1722408250847,-500.0,0.00043835,120]
[333720866,1722408250876,-500.0,0.00043835,120]
[333720867,1722408250907,-537.84,0.00043835,120]
[333720868,1722408250937,-500.0,0.00043835,120]
[333720869,1722408250967,-500.0,0.00043835,120]
[333720870,1722408250996,-500.0,0.00043835,120]
[333720871,1722408251027,-500.0,0.00043835,120]
[333720872,1722408251057,-500.0,0.00043835,120]
[333720873,1722408251089,-663.39,0.00043835,120]
[333720874,1722408251123,-500.0,0.00043835,120]
[333720875,1722408251155,-812.81,0.00043835,120]
[333720876,1722408251188,-500.0,0.00043835,120]
[333720877,1722408251226,-550.81,0.00043835,120]
[333720878,1722408251257,-500.0,0.00043835,120]
[333720879,1722408251289,-1485.45,0.00043835,120]
[333720880,1722408251319,-500.0,0.00043835,120]
[333720881,1722408251349,-508.18264869,0.00043835,120]
[333720882,1722408251379,-500.0,0.00043835,120]
[333720883,1722408251409,-500.0,0.00043835,120]
[333720884,1722408251440,-1212.6,0.00043835,120]
[333720885,1722408251470,-500.87925277,0.00043835,120]
[333720886,1722408251499,-500.0,0.00043835,120]
[333720887,1722408251530,-1677.21,0.00043835,120]
[333720888,1722408251559,-1252.77,0.00043835,120]
[333720889,1722408251589,-500.0,0.00043835,120]
[333720890,1722408251618,-515.10022121,0.00043835,120]
[333720891,1722408251648,-506.00669101,0.00043835,120]
[333720892,1722408251678,-2203.32,0.00043835,120]
[333720893,1722408251708,-1241.82,0.00043835,120]
[333720894,1722408251738,-2111.06,0.00043835,120]
[333720895,1722408251768,-596.08982973,0.00043835,120]
[333720896,1722408251798,-500.0,0.00043835,120]
[333720897,1722408251828,-500.0,0.00043835,120]
[333720898,1722408251860,-500.0,0.00043835,120]
[333720899,1722408251889,-500.0,0.00043835,120]
[333720900,1722408251918,-500.0,0.00043835,120]
[333720901,1722408251947,-500.0,0.00043835,120]
[333720902,1722408251977,-506.71045581,0.00043835,120]
[333720903,1722408252007,-929.39,0.00043835,120]
[333720904,1722408252037,-500.0,0.00043835,120]
[333720905,1722408252067,-500.0,0.00043835,120]
[333720906,1722408252100,-500.0,0.00043835,120]
[333720907,1722408252129,-500.0,0.00043835,120]
[333720908,1722408252161,-512.87315516,0.00043835,120]
[333720909,1722408252194,-1400.84,0.00043835,120]
[333720910,1722408252224,-500.0,0.00043835,120]
[333720911,1722408252255,-503.3561091,0.00043835,120]
[333720912,1722408252288,-2810.79,0.00043835,120]
[333720913,1722408252319,-745.39,0.00043835,120]
[333720914,1722408252350,-500.0,0.00043835,120]
[333720915,1722408252385,-500.0,0.00043835,120]
[333720916,1722408252416,-729.12,0.00043835,120]
[333720917,1722408252447,-500.0,0.00043835,120]
[333720918,1722408252479,-500.0,0.00043835,120]
[333720919,1722408252509,-500.0,0.00043835,120]
[333720920,1722408252540,-500.56263535,0.00043835,120]
[333720921,1722408252572,-2747.42,0.00043835,120]
[333720922,1722408252605,-500.0,0.00043835,120]
[333720923,1722408252636,-1288.86,0.00043835,120]
[333720924,1722408252666,-2000.0,0.00043835,30]
[333720925,1722408252697,-437.03496044,0.00043835,120]
[333720926,1722408252728,-500.0,0.00043835,120]
[333720927,1722408252758,-500.0,0.00043835,120]
[333720928,1722408252789,-500.0,0.00043835,120]
[333720929,1722408252822,-500.0,0.00043835,120]
[333720930,1722408253122,-500.0,0.00043835,120]
[333720931,1722408253156,-500.0,0.00043835,120]
[333720932,1722408253192,-3293.78,0.00043835,120]
[333720933,1722408253225,-1035.44,0.00043835,120]
[333720934,1722408253259,-500.0,0.00043835,120]
[333720935,1722408253293,-5027.11,0.00043835,120]
[333720936,1722408253326,-500.0,0.00043835,120]
[333720937,1722408253362,-500.0,0.00043835,120]
[333720938,1722408253394,-500.0,0.00043835,120]
[333720939,1722408253430,-500.0,0.00043835,120]
[333720940,1722408253465,-500.0,0.00043835,120]
[333720941,1722408253499,-1169.74,0.00043835,120]
[333720942,1722408253532,-708.85,0.00043835,120]
[333720943,1722408253565,-500.0,0.00043835,120]
[333720944,1722408253602,-1765.8,0.00043835,120]
[333720945,1722408253637,-500.0,0.00043835,120]
[333720946,1722408253669,-500.0,0.00043835,120]
[333720947,1722408253702,-2105.25,0.00043835,120]
[333720948,1722408253736,-500.0,0.00043835,120]
[333720949,1722408253768,-500.0,0.00043835,120]
[333720950,1722408253801,-500.0,0.00043835,120]
[333720951,1722408253838,-744.28,0.00043835,120]
[333720952,1722408253871,-500.0,0.00043835,120]
[333720953,1722408253903,-500.0,0.00043835,120]
[333720954,1722408253935,-500.0,0.00043835,120]
[333720955,1722408253966,-500.0,0.00043835,120]
[333720956,1722408253998,-500.0,0.00043835,120]
[333720957,1722408254030,-500.0,0.00043835,120]